Cogmind - Beta 10 @@@ ROGUE MODE // 2020.09.17 @ 09:34:53 Player: PhenomPhear Result: Self-destructed Performance ------------- Evolutions (6) 3000 Regions Visited (19) 3800 Robots Destroyed (131) 655 Value Destroyed (3905) 3905 Prototype IDs (39) 780 Alien Tech Used (0) 0 Bonus (2057) 2057 TOTAL SCORE: 14197 Bonus ------- High Alert Combat Kills 185 Follower Combat Kills 372 Met Data Miner 300 Met Warlord at Base 500 MAIN.C Attacked Warlord 500 Warlord Defense Kill 200 Cogmind --------- Core Integrity 1070/1150 Matter 300/300 Energy 700/700 System Corruption 0% Temperature Cool (0) Movement Flying (98) Ox1 Location -4/Factory Parts ------- > --- POWER (2) -------- Vortex Chain Reactor > --- PROPULSION (7) --- Improved Cesium-ion Thruster Q-thruster Cooled Impulse Thruster Cooled Impulse Thruster > --- UTILITY (8) ------ Experimental Cooling System Medium Storage Unit Advanced Signal Interpreter Advanced Melee Analysis Suite Experimental Armor Integrity Analyzer > --- WEAPON (2) ------- Lance > --- INVENTORY (8) ---- Matter Compressor (134) Improved Launcher Guidance Computer Experimental Phase Shifter Improved Utility Shielding Improved Proton Missile Launcher Mini Smartbomb Launcher Improved Remote Datajack Improved Plasma Cutter Peak State ------------ > --- POWER ------------ Vortex Chain Reactor > --- PROPULSION ------- Improved Cesium-ion Thruster Field Propulsion Drive Field Propulsion Drive Q-thruster Cooled Impulse Thruster Cooled Impulse Thruster > --- UTILITY ---------- Experimental Cooling System Medium Storage Unit Enhanced Optical Array Long-range Sensor Array Advanced Signal Interpreter Advanced Melee Analysis Suite Experimental Armor Integrity Analyzer > --- WEAPON ----------- Mini Smartbomb Launcher Lance > --- INVENTORY -------- Matter Compressor Improved Launcher Guidance Computer Experimental Phase Shifter Improved Utility Shielding Improved Proton Missile Launcher Improved Remote Datajack Improved Plasma Cutter [Rating: 115] Favorites ----------- Power Micro Fission Core Engine Light Ion Engine Power Core Micro Fission Core Reactor Vortex Chain Reactor Propulsion Improved VTOL Module Treads Light Treads Hover Unit Cooled Antigrav System Flight Unit Improved VTOL Module Utility Large Storage Unit Device Long-range Sensor Array Storage Large Storage Unit Processor Enhanced Optical Array Hackware Hacking Suite Protection Light Armor Plating Weapon Lance Energy Gun EM Pulse Gun Energy Cannon Ion Cannon Ballistic Gun Assault Rifle Launcher Grenade Launcher Special Weapon Improved Remote Datajack Slashing Weapon Scythe Piercing Weapon Lance Build | -11 -10 -10 -10 -9 -8 -7 -7 -7 -7 -6 -6 -5 -5 -5 -5 -5 -5 -4 -4 ------- Run | Scr Mat Min Exi Min Mat Fac Low Low Dat Pro Fac Fac Was Fac Upp Upp War Pro Fac Slots Evolved 12 | . . . . . 4 2 . . . . 2 2 . . . . . . 2 Power 1 | . . . . . 1 . . . . . . . . . . . . . . Propulsion 5 | . . . . . . 2 . . . . 1 1 . . . . . . 1 Utility 6 | . . . . . 3 . . . . . 1 1 . . . . . . 1 Weapon . | . . . . . . . . . . . . . . . . . . . . Parts Attached 129 | 6 5 . 2 1 43 11 4 . . 2 2 18 . 14 2 2 14 1 2 Power 19 | 1 . . . 1 8 2 1 . . . . 5 . . . . 1 . . Engine 8 | 1 . . . 1 3 1 1 . . . . 1 . . . . . . . Core 10 | . . . . . 5 1 . . . . . 4 . . . . . . . Reactor 1 | . . . . . . . . . . . . . . . . . 1 . . Propulsion 28 | 2 . . . . 7 4 . . . . 1 4 . 5 . . 4 1 . Treads 8 | 2 . . . . 6 . . . . . . . . . . . . . . Leg . | . . . . . . . . . . . . . . . . . . . . Wheel . | . . . . . . . . . . . . . . . . . . . . Hover 1 | . . . . . . . . . . . . . . . . . 1 . . Flight 19 | . . . . . 1 4 . . . . 1 4 . 5 . . 3 1 . Utility 50 | 1 3 . 2 . 13 5 . . . 1 1 7 . 7 . 1 7 . 2 Device 20 | . . . . . 3 1 . . . . . 4 . 5 . . 6 . 1 Storage 10 | 1 2 . 1 . 4 1 . . . . . 1 . . . . . . . Processor 7 | . . . . . 1 1 . . . 1 1 . . 2 . . 1 . . Hackware 1 | . . . . . . 1 . . . . . . . . . . . . . Protection 12 | . 1 . 1 . 5 1 . . . . . 2 . . . 1 . . 1 Artifact . | . . . . . . . . . . . . . . . . . . . . Weapon 32 | 2 2 . . . 15 . 3 . . 1 . 2 . 2 2 1 2 . . Energy Gun 14 | 1 . . . . 13 . . . . . . . . . . . . . . Energy Cannon 1 | . . . . . 1 . . . . . . . . . . . . . . Ballistic Gun 3 | 1 1 . . . 1 . . . . . . . . . . . . . . Ballistic Cannon . | . . . . . . . . . . . . . . . . . . . . Launcher 9 | . 1 . . . . . 1 . . . . 1 . 2 2 1 1 . . Special Weapon 1 | . . . . . . . . . . . . . . . . . 1 . . Impact Weapon . | . . . . . . . . . . . . . . . . . . . . Slashing Weapon 3 | . . . . . . . 2 . . 1 . . . . . . . . . Piercing Weapon 1 | . . . . . . . . . . . . 1 . . . . . . . Special Melee Weapon . | . . . . . . . . . . . . . . . . . . . . Unidentified Prototypes 14 | . . . . . 3 . . . . . . 3 . . . . 8 . . Parts Lost 29 | . 1 . . 2 11 2 1 1 . . . 4 . 1 . 1 1 4 . Power 8 | . . . . 1 3 2 . . . . . 2 . . . . . . . Propulsion 4 | . . . . . . . . . . . . . . 1 . . 1 2 . Utility 8 | . . . . . 3 . 1 . . . . 1 . . . 1 . 2 . Weapon 9 | . 1 . . 1 5 . . 1 . . . 1 . . . . . . . Highest Loss Streak 6 | . 1 . . 2 6 2 1 1 . . . 3 . 1 . 1 1 4 . Average Slot Usage (%) 93 | . 97 100 100 92 95 91 88 76 76 78 80 89 88 91 94 99 91 88 57 Engine 5 | . 14 14 14 14 5 . 6 7 7 7 6 1 . . . . . . . Core 5 | . . . . . 10 14 . . . . . 8 11 11 11 11 6 . . Treads 11 | . 28 28 28 28 17 . . . . . . . . . . . . . . Flight 16 | . . . . . . 30 30 30 30 30 33 30 29 30 35 35 35 33 21 Device 6 | . . . . . 5 7 6 . . . . 5 11 16 17 11 11 9 5 Storage 11 | . 14 14 14 14 26 4 7 7 7 7 6 5 5 5 5 5 5 5 5 Processor 9 | . . . . . 2 7 15 15 15 17 20 17 17 17 17 17 19 21 15 Protection 7 | . 11 14 14 14 8 6 7 7 7 7 6 9 5 . . 4 3 . . Energy Gun 3 | . 11 . . . 14 3 . . . . . . . . . . . . . Ballistic Gun 4 | . 11 14 14 14 2 7 7 . . . . . . . . . . . . Launcher 3 | . 5 14 14 6 . . . . . . . 2 . 1 . 4 . 4 . Piercing Weapon 1 | . . . . . . . . . . . . 4 5 5 5 5 5 5 5 Naked Turns . | . . . . . . . . . . . . . . . . . . . . Heaviest Build 88 | 11 27 27 27 27 88 22 28 22 21 24 24 47 32 34 27 31 53 53 47 Greatest Support 59 | 40 40 40 40 40 40 24 24 24 24 24 30 49 49 49 33 49 57 59 41 Greatest Overweight (x) 2 | . . . . . 2 . 1 . . . . . . . . . 1 1 1 Average Overweight (x) . | . . . . . 1 . . . . . . . . . . . . . 1 Largest Inventory Capacity 24 | 6 10 10 10 10 24 24 8 8 8 8 8 8 8 8 8 8 8 8 8 Average Capacity 11 | 5 8 10 10 10 23 6 8 8 8 8 8 8 8 8 8 8 8 8 8 Most Carried 24 | 3 9 8 10 9 24 24 8 8 8 8 8 8 8 8 8 8 8 8 8 Average Carried 9 | 1 7 8 8 8 19 5 7 8 8 8 7 7 7 7 7 7 7 6 7 Final Capacity 24 | 6 10 10 10 10 24 8 8 8 8 8 8 8 8 8 8 8 8 8 8 Final Carried 24 | 3 8 8 8 9 24 7 8 8 8 8 8 8 8 8 8 8 7 8 8 Class Distribution -------------------- 31% | Mutant 25% | Sprinter 21% | Scout 18% | Hauler-Mutant 3% | Commander-Scout Dominant Class ---------------- Mutant | -10/Materials Mutant | -10/Mines Mutant | -10/Exiles Mutant | -9/Mines Hauler-Mutant | -8/Materials Sprinter | -7/Factory Sprinter | -7/Lower Caves Sprinter | -7/Lower Caves Sprinter | -7/Data Miner Sprinter | -6/Proximity Caves Sprinter | -6/Factory Sprinter | -5/Factory Sprinter | -5/Waste Scout | -5/Factory Scout | -5/Upper Caves Scout | -5/Upper Caves Commander-Scout | -5/Warlord Scout | -4/Proximity Caves Mutant | -4/Factory Resources | -11 -10 -10 -10 -9 -8 -7 -7 -7 -7 -6 -6 -5 -5 -5 -5 -5 -5 -4 -4 ----------- Run | Scr Mat Min Exi Min Mat Fac Low Low Dat Pro Fac Fac Was Fac Upp Upp War Pro Fac Matter Collected 3220 | 186 160 131 276 50 420 93 89 . . 33 10 212 . 22 285 515 193 435 110 Remotely . | . . . . . . . . . . . . . . . . . . . . Salvage Created 3954 | . 258 115 . 94 1309 56 77 . . 54 28 819 . 38 88 520 93 295 110 Parts 225 | . 32 19 . 10 61 3 9 . . . . 42 . 5 7 14 3 17 3 Haulers Intercepted 7 | . 1 . . . 3 1 . . . . . 1 . . . . . . 1 Recyclers Shooed 1 | . . . . 1 . . . . . . . . . . . . . . . Parts Field Recycled . | . . . . . . . . . . . . . . . . . . . . Retrieved Matter . | . . . . . . . . . . . . . . . . . . . . Parts Self-Destructed 67 | . . . . . . . 7 . . 7 . . . . 7 4 28 14 . Prevented 11 | . . . . . . . . . . . . . . . . . 11 . . Kills | -11 -10 -10 -10 -9 -8 -7 -7 -7 -7 -6 -6 -5 -5 -5 -5 -5 -5 -4 -4 ------- Run | Scr Mat Min Exi Min Mat Fac Low Low Dat Pro Fac Fac Was Fac Upp Upp War Pro Fac Combat Hostiles Destroyed 99 | . 8 9 . 4 21 . 4 . . 1 1 11 . 3 9 9 2 17 . Melee 9 | . . . . . . . . . . 1 1 6 . . . 1 . . . Guns 19 | . . . . 1 18 . . . . . . . . . . . . . . Cannons 1 | . . . . . 1 . . . . . . . . . . . . . . AOE 68 | . 8 9 . 3 . . 4 . . . . 5 . 3 9 8 2 17 . Classes Destroyed 15 | . 6 . . . 5 . . . . . 1 1 . . . 2 . . . Worker 8 | . 2 2 . . . . . . . . . 4 . . . . . . . Builder 3 | . 3 . . . . . . . . . . . . . . . . . . Tunneler 1 | . . . . . 1 . . . . . . . . . . . . . . Hauler 7 | . 1 . . . 3 1 . . . . . 1 . . . . . . 1 Recycler 2 | . . . . . 1 . . . . . . 1 . . . . . . . Operator 1 | . . . . . . . . . . . . 1 . . . . . . . Watcher 3 | . 1 . . . . . . . . . . 1 . 1 . . . . . Swarmer 53 | . 3 6 . 2 3 . 4 . . . . 5 . 3 9 5 . 13 . Grunt 31 | . 5 3 . 2 10 . . . . 1 . 3 . . . 2 2 3 . Brawler 2 | . . . . . 1 . . . . . . . . . . . . 1 . Sentry 8 | . . . . . 5 . . . . . . 2 . . . 1 . . . Hunter 2 | . . . . . 2 . . . . . . . . . . . . . . Programmer 2 | . . . . . . . . . . . 1 1 . . . . . . . Behemoth 1 | . . . . . . . . . . . . . . . . 1 . . . Decomposer 3 | . . . . . . . 2 . . . . . . . 1 . . . . Packrat 1 | . . . . . . . . . . . . . . . . . . 1 . Samaritan 3 | . . . . . . . . . . . . . . . . 3 . . . Best Kill Streak 10 | . 5 6 . 2 3 1 4 . . 1 1 10 . 3 5 7 2 8 1 Combat Bots Only 8 | . 4 5 . 2 3 . 4 . . 1 1 8 . 3 5 7 2 8 . Max Kills in Single Turn 4 | . 2 2 . 2 1 1 3 . . 1 1 3 . 3 3 3 2 4 1 Gunslinging . | . . . . . . . . . . . . . . . . . . . . Exploded 4 | . 1 2 . 2 . . 3 . . . . 3 . 3 3 3 2 4 . Melee 1 | . . . . . . . . . . 1 1 1 . . . 1 . . . Uniques/NPCs Destroyed . | . . . . . . . . . . . . . . . . . . . . Combat | -11 -10 -10 -10 -9 -8 -7 -7 -7 -7 -6 -6 -5 -5 -5 -5 -5 -5 -4 -4 -------- Run | Scr Mat Min Exi Min Mat Fac Low Low Dat Pro Fac Fac Was Fac Upp Upp War Pro Fac Damage Taken 4533 | . 233 121 . 173 1897 107 99 13 . . 90 692 . 335 . 74 100 435 164 Core 615 | . 30 . . . 200 . 5 . . . 31 47 . 92 . 47 . 83 80 Absorbed by Shields 13 | . . . . . . 13 . . . . . . . . . . . . . Core Remaining (%) 86 | 100 . . . 88 63 . . . . 99 96 . . . . . . 73 . Volleys Fired 203 | . 20 13 . 12 86 3 18 . . . . 4 . 1 4 12 11 19 . Largest 2 | . 2 1 . 1 2 2 1 . . . . 1 . 1 1 1 1 1 . Hottest 95 | . 70 30 . 30 95 65 39 . . . . 36 . 43 80 80 80 80 . Shots Fired 301 | . 31 13 . 12 170 6 18 . . . . 4 . 1 4 12 11 19 . Gun 212 | . 17 . . 10 164 6 15 . . . . . . . . . . . . Cannon 6 | . . . . . 6 . . . . . . . . . . . . . . Launcher 74 | . 14 13 . 2 . . 3 . . . . 4 . 1 4 12 2 19 . Special 9 | . . . . . . . . . . . . . . . . . 9 . . Kinetic 55 | . 11 . . 10 16 3 15 . . . . . . . . . . . . Thermal 32 | . 6 . . . 26 . . . . . . . . . . . . . . Explosive 73 | . 14 13 . 2 . . 3 . . . . 4 . . 4 12 2 19 . Electromagnetic 132 | . . . . . 128 3 . . . . . . . 1 . . . . . Robot Hit Streak 15 | . 9 11 . 13 15 15 4 . . . . . . . . . 10 . . Robot Miss Streak 4 | . 2 . . 2 4 1 2 . . . . 1 . . . . . . . Penetration Max . | . . . . . . . . . . . . . . . . . . . . Secondary Targets 2 | . . . . . 2 . . . . . . . . . . . . . . Max Gunslinging Chain 1 | . . . . . 1 . . . . . . . . . . . . . . Shots Hit Robots 217 | . 10 2 . 8 124 4 10 . . 4 8 16 . 1 1 11 10 3 5 Core Hits 211 | . 24 16 . 6 56 2 12 . . 1 1 21 . 4 10 22 6 29 1 Critical Hits 1 | . . . . . . . . . . . 1 . . . . . . . . Critical Kills . | . . . . . . . . . . . . . . . . . . . . Critical Parts Destroyed 1 | . . . . . . . . . . . 1 . . . . . . . . Melee Attacks 105 | . . . . . . . 11 2 . 7 12 30 . 19 3 13 . 3 5 Impact . | . . . . . . . . . . . . . . . . . . . . Slashing 37 | . . . . . . . 11 2 . 7 12 5 . . . . . . . Piercing 68 | . . . . . . . . . . . . 25 . 19 3 13 . 3 5 Sneak Attacks 13 | . . . . . . . . . . . . 7 . . 1 3 . 1 1 Combat Hostiles 1 | . . . . . . . . . . . . 1 . . . . . . . Follow-up Attacks . | . . . . . . . . . . . . . . . . . . . . Damage Inflicted 14957 | . 964 770 . 236 2059 68 482 . . 239 422 2069 . 589 1188 2543 568 2471 289 Guns 2176 | . 106 . . 102 1814 68 86 . . . . . . . . . . . . Cannons 114 | . . . . . 114 . . . . . . . . . . . . . . Explosions 8406 | . 858 764 . 114 101 . 396 . . . . 361 . 519 1082 1358 568 2285 . Melee 4205 | . . . . . . . . . . 239 422 1708 . 70 106 1185 . 186 289 Ramming 56 | . . 6 . 20 30 . . . . . . . . . . . . . . Kinetic 332 | . 57 . . 102 79 8 86 . . . . . . . . . . . . Thermal 1136 | . 49 . . . 507 . . . . . . 61 . 519 . . . . . Explosive 7725 | . 858 764 . 114 . . 396 . . . . 300 . . 1082 1358 568 2285 . Electromagnetic 1503 | . . . . . 1443 60 . . . . . . . . . . . . . Impact . | . . . . . . . . . . . . . . . . . . . . Slashing 1470 | . . . . . . . . . . 239 422 809 . . . . . . . Piercing 2735 | . . . . . . . . . . . . 899 . 70 106 1185 . 186 289 Highest Corruption 11 | . . . . . . 1 1 1 1 1 . 2 10 10 5 1 3 11 . Average Corruption 3 | . . . . . . 1 1 1 1 1 . 1 5 6 4 1 2 11 . Corruption Purged 10 | . . . . . . . . . . . . 1 . 5 4 . . . . Effects 40 | . . . . . . 2 3 . 1 . . 2 1 15 11 4 . 1 . Message Errors 13 | . . . . . . 1 . . 1 . . 2 . 4 3 2 . . . Matter Fused 8 | . . . . . . . . . . . . . . 3 4 . . 1 . Energy Discharges 2 | . . . . . . . 1 . . . . . . . 1 . . . . Data Loss (minor) 7 | . . . . . . . 2 . . . . . . 3 1 1 . . . Data Loss (major) 4 | . . . . . . . . . . . . . . 2 2 . . . . Misdirections 3 | . . . . . . . . . . . . . 1 2 . . . . . Targeting Errors 3 | . . . . . . 1 . . . . . . . 1 . 1 . . . Overload Shots . | . . . . . . . . . . . . . . . . . . . . Overflow Damage 1373 | . 28 41 . . 23 . 18 . . 10 55 230 . 62 189 445 20 252 . Projectiles 15 | . . . . . 15 . . . . . . . . . . . . . . Explosions 661 | . 28 41 . . . . 18 . . . . 33 . 62 89 147 20 223 . Melee 697 | . . . . . 8 . . . . 10 55 197 . . 100 298 . 29 . Knockbacks 2 | . . 1 . . 1 . . . . . . . . . . . . . . Impact 2 | . . 1 . . 1 . . . . . . . . . . . . . . Kinetic . | . . . . . . . . . . . . . . . . . . . . Secondary . | . . . . . . . . . . . . . . . . . . . . Self-Inflicted Damage 135 | . 29 . . . . . . . . . . 106 . . . . . . . Shots 4 | . 2 . . . . . . . . . . 2 . . . . . . . Rammed 9 | . 1 1 . 2 5 . . . . . . . . . . . . . . Targets Rammed 11 | . 1 2 . 2 6 . . . . . . . . . . . . . . Kicked . | . . . . . . . . . . . . . . . . . . . . Crushed 2 | . . 1 . . 1 . . . . . . . . . . . . . . Highest Temperature 238 | . 45 12 . 4 238 72 9 . . . . 45 . . . 4 3 7 . Average Temperature 74 | . 14 6 . 2 99 17 7 . . . . 16 . . . 4 3 3 . Received Heat Transfer 1155 | . 84 24 . 96 792 33 9 . . . . 30 . 27 . . 51 9 . Effects 2 | . . . . . 2 . . . . . . . . . . . . . . Interference 2 | . . . . . 2 . . . . . . . . . . . . . . Siege Activations . | . . . . . . . . . . . . . . . . . . . . Robots Corrupted 2 | . . . . . 2 . . . . . . . . . . . . . . Combat Hostiles 2 | . . . . . 2 . . . . . . . . . . . . . . Parts Fried 12 | . . . . . 12 . . . . . . . . . . . . . . Impact Corruptions 1 | . . . . . 1 . . . . . . . . . . . . . . Robots Melted . | . . . . . . . . . . . . . . . . . . . . Combat Hostiles . | . . . . . . . . . . . . . . . . . . . . Parts Melted . | . . . . . . . . . . . . . . . . . . . . Heat Transferred 1388 | . 148 . . . 840 . . . . . . 50 . 350 . . . . . Parts Sabotaged . | . . . . . . . . . . . . . . . . . . . . Parts Stolen . | . . . . . . . . . . . . . . . . . . . . Parts Stripped . | . . . . . . . . . . . . . . . . . . . . Power Chain Reactions 1 | . . . . . 1 . . . . . . . . . . . . . . Missiles Intercepted . | . . . . . . . . . . . . . . . . . . . . Alert | -11 -10 -10 -10 -9 -8 -7 -7 -7 -7 -6 -6 -5 -5 -5 -5 -5 -5 -4 -4 ------- Run | Scr Mat Min Exi Min Mat Fac Low Low Dat Pro Fac Fac Was Fac Upp Upp War Pro Fac Peak Influence 648 | . 200 293 . 137 231 155 . . . . 132 648 199 575 . . . . 221 Initial 214 | . . 78 . . 49 81 . . . . 70 64 169 139 . . . . 214 Average 175 | . 45 202 . 102 102 120 . . . . 85 310 178 422 . . . . 215 Maximum Alert Level 2 | . 1 1 . . 1 . . . . . . 2 . 2 . . . . 1 Low Security (%) 67 | 100 87 36 . 100 91 100 . . . . 100 40 100 11 . . . . . Level 1 17 | . 12 63 . . 8 . . . . . . 22 . 7 . . . . 100 Level 2 15 | . . . . . . . . . . . . 37 . 81 . . . . . Level 3 . | . . . . . . . . . . . . . . . . . . . . Level 4 . | . . . . . . . . . . . . . . . . . . . . Level 5 . | . . . . . . . . . . . . . . . . . . . . High Security . | . . . . . . . . . . . . . . . . . . . . Max Security . | . . . . . . . . . . . . . . . . . . . . Squads Dispatched 10 | . 2 . . . 1 . . . . . . 4 . 3 . . . . . Investigation 6 | . . . . . 1 . . . . . . 2 . 3 . . . . . Extermination . | . . . . . . . . . . . . . . . . . . . . Reinforcement 4 | . 2 . . . . . . . . . . 2 . . . . . . . Assault . | . . . . . . . . . . . . . . . . . . . . Garrison . | . . . . . . . . . . . . . . . . . . . . Intercept . | . . . . . . . . . . . . . . . . . . . . Construction Impeded . | . . . . . . . . . . . . . . . . . . . . Haulers Reinforced 1 | . . . . . . . . . . . . 1 . . . . . . . Stealth | -11 -10 -10 -10 -9 -8 -7 -7 -7 -7 -6 -6 -5 -5 -5 -5 -5 -5 -4 -4 --------- Run | Scr Mat Min Exi Min Mat Fac Low Low Dat Pro Fac Fac Was Fac Upp Upp War Pro Fac Distress Signals 5 | . . . . 1 2 1 . . . . . 1 . . . . . . . Communications Jammed . | . . . . . . . . . . . . . . . . . . . . Distress Signals . | . . . . . . . . . . . . . . . . . . . . Times Spotted 187 | . 12 10 . 5 33 14 11 4 . 2 2 27 6 37 1 5 12 4 2 Peak Tracking Total 11 | . 3 3 . 3 6 4 4 4 . 2 1 11 6 10 4 7 10 4 2 Tactical Retreats 29 | . 1 1 . . 1 4 4 1 . . . 6 . 7 . . 3 1 . Traps | -11 -10 -10 -10 -9 -8 -7 -7 -7 -7 -6 -6 -5 -5 -5 -5 -5 -5 -4 -4 ------- Run | Scr Mat Min Exi Min Mat Fac Low Low Dat Pro Fac Fac Was Fac Upp Upp War Pro Fac Traps Triggered 11 | . . . . . 1 2 . . . . . 2 . 6 . . . . . Indirectly . | . . . . . . . . . . . . . . . . . . . . Trap Hack Attempts . | . . . . . . . . . . . . . . . . . . . . Triggered . | . . . . . . . . . . . . . . . . . . . . Disarmed . | . . . . . . . . . . . . . . . . . . . . Reprogrammed . | . . . . . . . . . . . . . . . . . . . . Reused . | . . . . . . . . . . . . . . . . . . . . Traps Extracted . | . . . . . . . . . . . . . . . . . . . . Installed . | . . . . . . . . . . . . . . . . . . . . Triggered 6 | . . . . . . . . . . . . . . . . . 6 . . Machines | -11 -10 -10 -10 -9 -8 -7 -7 -7 -7 -6 -6 -5 -5 -5 -5 -5 -5 -4 -4 ---------- Run | Scr Mat Min Exi Min Mat Fac Low Low Dat Pro Fac Fac Was Fac Upp Upp War Pro Fac Machines Disabled 25 | . 2 4 . 3 1 . . . . . . 4 . 11 . . . . . Max in Single Turn 8 | . 1 2 . 2 1 . . . . . . 2 . 8 . . . . . Machines Sabotaged . | . . . . . . . . . . . . . . . . . . . . Garrisons Compromised . | . . . . . . . . . . . . . . . . . . . . Overloaded Fab Kills . | . . . . . . . . . . . . . . . . . . . . Fab Network Shutdowns . | . . . . . . . . . . . . . . . . . . . . Hacking | -11 -10 -10 -10 -9 -8 -7 -7 -7 -7 -6 -6 -5 -5 -5 -5 -5 -5 -4 -4 --------- Run | Scr Mat Min Exi Min Mat Fac Low Low Dat Pro Fac Fac Was Fac Upp Upp War Pro Fac Machines Accessed 47 | . 4 . . 1 2 1 1 . 4 . 1 4 . 12 . . 16 1 . Terminals 20 | . 3 . . 1 2 1 . . . . 1 4 . 7 . . . 1 . Fabricators 1 | . . . . . . . . . . . . . . 1 . . . . . Repair Stations 3 | . 1 . . . . . . . . . . . . 2 . . . . . Recycling Units 2 | . . . . . . . . . . . . . . 2 . . . . . Scanalyzers . | . . . . . . . . . . . . . . . . . . . . Garrison Access . | . . . . . . . . . . . . . . . . . . . . Total Hacks 121 | . 13 . . 6 4 2 1 . 27 . 1 9 . 24 . . 33 1 . Successful 87 | . 8 . . 3 3 1 1 . 27 . . 1 . 9 . . 33 1 . Failed 34 | . 5 . . 3 1 1 . . . . 1 8 . 15 . . . . . Catastrophic 8 | . . . . 1 1 1 . . . . 1 2 . 2 . . . . . Database Lockouts . | . . . . . . . . . . . . . . . . . . . . Manual 22 | . . . . . 1 2 . . . . 1 8 . 9 . . 1 . . Terminals 49 | . 10 . . 6 4 2 . . . . 1 9 . 16 . . . 1 . Fabricators 2 | . . . . . . . . . . . . . . 2 . . . . . Repair Stations 6 | . 3 . . . . . . . . . . . . 3 . . . . . Recycling Units 3 | . . . . . . . . . . . . . . 3 . . . . . Scanalyzers . | . . . . . . . . . . . . . . . . . . . . Garrison Access . | . . . . . . . . . . . . . . . . . . . . Terminal Hacks 80 | . 6 . . 3 3 1 1 . 27 . . 1 . 4 . . 33 1 . Record 41 | . 1 . . 2 . . . . 11 . . . . . . . 26 1 . Part Schematic 8 | . . . . . . . . . 8 . . . . . . . . . . Robot Schematic 5 | . . . . . . . . . 5 . . . . . . . . . . Robot Analysis 1 | . . . . . . . . . . . . . . 1 . . . . . Prototype ID Bank 11 | . 2 . . . 1 . . . 3 . . . . . . . 5 . . Open Door 3 | . . . . . . . 1 . . . . . . . . . 2 . . Level Access Points 1 | . . . . . . . . . . . . . . 1 . . . . . Branch Access Points 2 | . . . . . . 1 . . . . . 1 . . . . . . . Alert Level 1 | . . . . . 1 . . . . . . . . . . . . . . Locate Traps 2 | . 1 . . . 1 . . . . . . . . . . . . . . Hauler Manifests 1 | . 1 . . . . . . . . . . . . . . . . . . Zone Layout 4 | . 1 . . 1 . . . . . . . . . 2 . . . . . Fabricator Hacks 2 | . . . . . . . . . . . . . . 2 . . . . . Load Schematic 1 | . . . . . . . . . . . . . . 1 . . . . . Build 1 | . . . . . . . . . . . . . . 1 . . . . . Repair Station Hacks 3 | . 2 . . . . . . . . . . . . 1 . . . . . Scan Component 2 | . 1 . . . . . . . . . . . . 1 . . . . . Repair 1 | . 1 . . . . . . . . . . . . . . . . . . Recycling Unit Hacks 2 | . . . . . . . . . . . . . . 2 . . . . . Retrieve Components 2 | . . . . . . . . . . . . . . 2 . . . . . Scanalyzer . | . . . . . . . . . . . . . . . . . . . . Garrison Access Hacks . | . . . . . . . . . . . . . . . . . . . . Unauthorized Hacks . | . . . . . . . . . . . . . . . . . . . . Terminals . | . . . . . . . . . . . . . . . . . . . . Fabricators . | . . . . . . . . . . . . . . . . . . . . Repair Stations . | . . . . . . . . . . . . . . . . . . . . Recycling Units . | . . . . . . . . . . . . . . . . . . . . Scanalyzers . | . . . . . . . . . . . . . . . . . . . . Garrison Access . | . . . . . . . . . . . . . . . . . . . . Data Cores Recovered . | . . . . . . . . . . . . . . . . . . . . Used . | . . . . . . . . . . . . . . . . . . . . Hacking Detections 17 | . 2 . . 1 1 . . . . . 1 4 . 8 . . . . . Full Trace Events 3 | . . . . . . . . . . . . 1 . 2 . . . . . Feedback Events . | . . . . . . . . . . . . . . . . . . . . Feedback Blocked . | . . . . . . . . . . . . . . . . . . . . Robot Schematics Acquired 5 | . . . . . . . . . 5 . . . . . . . . . . Robots Built . | . . . . . . . . . . . . . . . . . . . . Matter . | . . . . . . . . . . . . . . . . . . . . Time . | . . . . . . . . . . . . . . . . . . . . Total Robot Build Rating . | . . . . . . . . . . . . . . . . . . . . Part Schematics Acquired 8 | . . . . . . . . . 8 . . . . . . . . . . Parts Built 1 | . . . . . . . . . . . . . . 1 . . . . . Matter 318 | . . . . . . . . . . . . . . 318 . . . . . Time 169 | . . . . . . . . . . . . . . 169 . . . . . Total Part Build Rating 6 | . . . . . . . . . . . . . . 6 . . . . . Parts Repaired 1 | . 1 . . . . . . . . . . . . . . . . . . Time 26 | . 26 . . . . . . . . . . . . . . . . . . Parts Recycled . | . . . . . . . . . . . . . . . . . . . . Recycled Matter . | . . . . . . . . . . . . . . . . . . . . Retrieved Matter . | . . . . . . . . . . . . . . . . . . . . Retrieved Components 1 | . . . . . . . . . . . . . . 1 . . . . . Parts Scanalyzed . | . . . . . . . . . . . . . . . . . . . . Part Schematics Acquired . | . . . . . . . . . . . . . . . . . . . . Parts Damaged . | . . . . . . . . . . . . . . . . . . . . Bothacking | -11 -10 -10 -10 -9 -8 -7 -7 -7 -7 -6 -6 -5 -5 -5 -5 -5 -5 -4 -4 ------------ Run | Scr Mat Min Exi Min Mat Fac Low Low Dat Pro Fac Fac Was Fac Upp Upp War Pro Fac Used RIF Installer . | . . . . . . . . . . . . . . . . . . . . Robots Hacked . | . . . . . . . . . . . . . . . . . . . . Non-combat . | . . . . . . . . . . . . . . . . . . . . Combat . | . . . . . . . . . . . . . . . . . . . . Robot Hacks Applied . | . . . . . . . . . . . . . . . . . . . . Relay Couplers Released . | . . . . . . . . . . . . . . . . . . . . Robots Rewired 5 | . . . . . . . . . . . . . . . . . 5 . . Allies Hacked . | . . . . . . . . . . . . . . . . . . . . Hacks Repelled . | . . . . . . . . . . . . . . . . . . . . Allies | -11 -10 -10 -10 -9 -8 -7 -7 -7 -7 -6 -6 -5 -5 -5 -5 -5 -5 -4 -4 -------- Run | Scr Mat Min Exi Min Mat Fac Low Low Dat Pro Fac Fac Was Fac Upp Upp War Pro Fac Total Allies 9 | . . 3 . . . . . . . 1 . . . . . . 5 . . Largest Group 5 | . . 3 2 2 . . . . . 1 . . . . . . 5 . . Highest-Rated Group 247 | . . 40 24 24 . . . . . 94 . . . . . . 247 . . Highest-Rated Ally 94 | . . 16 16 16 . . . . . 94 . . . . . . 60 . . Total Orders . | . . . . . . . . . . . . . . . . . . . . Ally Attacks 63 | . . 18 . 5 . . . . . 19 . . . . . . 21 . . Total Damage 1369 | . . 182 . 38 . . . . . 468 . . . . . . 681 . . Kills 12 | . . 3 . 1 . . . . . 4 . . . . . . 4 . . Allies Corrupted . | . . . . . . . . . . . . . . . . . . . . Allies Melted . | . . . . . . . . . . . . . . . . . . . . Intel | -11 -10 -10 -10 -9 -8 -7 -7 -7 -7 -6 -6 -5 -5 -5 -5 -5 -5 -4 -4 ------- Run | Scr Mat Min Exi Min Mat Fac Low Low Dat Pro Fac Fac Was Fac Upp Upp War Pro Fac Robot Analysis Total 1 | . . . . . . . . . . . . . . 1 . . . . . Derelict Logs Recovered 10 | . . 2 . . . . 2 . . 1 . . . . 1 2 . 2 . Drone Launches . | . . . . . . . . . . . . . . . . . . . . Drone Recoveries . | . . . . . . . . . . . . . . . . . . . . Exploration | -11 -10 -10 -10 -9 -8 -7 -7 -7 -7 -6 -6 -5 -5 -5 -5 -5 -5 -4 -4 ------------- Run | Scr Mat Min Exi Min Mat Fac Low Low Dat Pro Fac Fac Was Fac Upp Upp War Pro Fac Turns Passed 7232 | 86 618 636 438 380 1345 338 394 87 21 115 117 447 30 682 381 342 431 252 92 Spaces Moved 10690 | 48 327 377 271 212 471 929 625 316 79 286 275 1084 109 1374 986 948 1109 786 78 Core 2 | 2 . . . . . . . . . . . . . . . . . . . Treads 1704 | 46 327 377 271 212 471 . . . . . . . . . . . . . . Legs . | . . . . . . . . . . . . . . . . . . . . Wheels . | . . . . . . . . . . . . . . . . . . . . Hover . | . . . . . . . . . . . . . . . . . . . . Flight 8984 | . . . . . . 929 625 316 79 286 275 1084 109 1374 986 948 1109 786 78 Fastest Speed 20 | 50 160 160 160 160 180 26 26 26 26 26 24 20 25 23 29 23 22 20 98 Average Speed 50 | 155 160 160 160 160 203 26 26 26 26 26 26 24 25 27 29 28 27 24 98 Slowest Speed 210 | 160 160 160 160 160 210 26 96 26 26 26 27 25 25 29 29 29 101 98 98 Overloaded Moves 24 | . . . . . . . . . . . . . . . . . . 24 . Propulsion Burnouts . | . . . . . . . . . . . . . . . . . . . . Robots Hopped 20 | . . . . . . 6 . . . . 3 2 . 7 . . 2 . . Cave-ins Triggered 1 | . . . . . . . . . . . . . . . . . . 1 . Exploration Rate (%) 54 | 4 50 81 64 30 37 27 67 66 73 52 8 29 95 37 79 97 95 93 3 Regions Visited 19 Branch Regions 11 Pre-discovered Areas 8 | . . 1 . 1 . . 1 . 1 . . . . . 1 1 1 1 . Known Exits Taken 8 | . . . 1 . . 1 . . . 1 . . . 1 1 1 1 1 . Unknown Exits Taken 9 | 1 1 1 . 1 1 . 1 1 1 . 1 . . . . . . . . Scrap Searched 18 | . . 2 . 1 . . 2 2 . 2 . . . . 4 3 . 2 . Spaces Dug 56 | . 5 . . . . . 17 2 . 1 2 13 . 12 2 2 . . . Terrain Destroyed 776 | . 57 70 . 10 7 . 35 2 . 1 2 75 . 33 67 149 22 246 . Melee 45 | . . . . . . . 11 2 . 1 2 13 . 12 2 2 . . . Projectile . | . . . . . . . . . . . . . . . . . . . . AOE 731 | . 57 70 . 10 7 . 24 . . . . 62 . 21 65 147 22 246 . Terrain Rammed . | . . . . . . . . . . . . . . . . . . . . Walls Destroyed . | . . . . . . . . . . . . . . . . . . . . Machines Disabled . | . . . . . . . . . . . . . . . . . . . . Actions | -11 -10 -10 -10 -9 -8 -7 -7 -7 -7 -6 -6 -5 -5 -5 -5 -5 -5 -4 -4 --------- Run | Scr Mat Min Exi Min Mat Fac Low Low Dat Pro Fac Fac Was Fac Upp Upp War Pro Fac Total 12032 | 57 389 396 276 240 682 1016 819 317 78 311 290 1217 112 1642 1072 981 1234 816 87 Wait 709 | . 28 5 1 12 32 45 158 . . 16 2 56 . 187 76 3 84 4 . Move 10633 | 47 326 376 270 211 470 917 624 315 78 285 269 1080 108 1359 985 947 1104 784 78 Hop 18 | . . . . . . 5 . . . . 2 2 . 7 . . 2 . . Pick Up 73 | 4 7 . 1 2 25 8 2 . . . 2 10 2 3 . 3 2 2 . Fast Attach 48 | 5 1 . . . 9 4 2 . . 2 1 8 . 6 . . 10 . . Attach 40 | 1 1 . . 1 15 5 1 . . . 1 4 . 2 2 2 2 1 2 Detach 17 | . . . . . 4 2 . . . . . 1 . 3 2 . 2 1 2 Swap 41 | . 3 . 2 . 19 2 1 . . . . 6 . 6 . . 2 . . Drop 76 | . 2 . 2 . 16 10 2 . . 1 1 16 2 7 . 1 15 1 . Fire 203 | . 20 13 . 12 86 3 18 . . . . 4 . 1 4 12 11 19 . Melee 105 | . . . . . . . 11 2 . 7 12 30 . 19 3 13 . 3 5 Ram . | . . . . . . . . . . . . . . . . . . . . Kick . | . . . . . . . . . . . . . . . . . . . . Crush 11 | . 1 2 . 2 6 . . . . . . . . . . . . . . Escape Stasis 58 | . . . . . . 15 . . . . . . . 42 . . . 1 . Rewire . | . . . . . . . . . . . . . . . . . . . . Trap . | . . . . . . . . . . . . . . . . . . . . Miscellaneous . | . . . . . . . . . . . . . . . . . . . . Route ------- -11/Scrapyard -10/Materials (discovered 2 exits: [*Min x2]) -10/Mines (discovered 3 exits: [*Mat x2] / [*Exi]) -10/Exiles (discovered 2 exits: *Min x2) -9/Mines -8/Materials -7/Factory (discovered 2 exits: *Low x2) -7/Lower Caves -7/Lower Caves -7/Data Miner -6/Proximity Caves -6/Factory (discovered 2 exits: *Fac x2) -5/Factory (discovered 4 exits: *Upp x2 / Ext x2) -5/Waste -5/Factory (discovered 6 exits: *Fac x4 / *Upp / *Ext) -5/Upper Caves -5/Upper Caves (discovered 2 exits: *Fac / *War) -5/Warlord -4/Proximity Caves -4/Factory (discovered 1 exit: Arm) History --------- Turn | Location | Event 6 | -11/Scrapyard | Discovered new exit (range 15) 87 | -11/Scrapyard | Entered Materials 313 | -10/Materials | Build established: Mutant 368 | -10/Materials | Repaired Lgt. Treads 403 | -10/Materials | Discovered new exit (range 9) 449 | -10/Materials | Discovered new exit (range 10) 705 | -10/Materials | Entered Mines 814 | -10/Mines | Learned location of Recycling (-9) 1029 | -10/Mines | Discovered new exit (range 8) 1054 | -10/Mines | Discovered new exit (range 15) 1081 | -10/Mines | Assisted by bots powering up and referring to "LRC-V3" 1327 | -10/Mines | Deemed a non-threat by the Exiles lab entrance 1328 | -10/Mines | Discovered new exit (range 5) 1341 | -10/Mines | Entered Exiles 1341 | -10/Exiles | Accompanied by 2 allies 1342 | -10/Exiles | Identified exit to Mines 1383 | -10/Exiles | Met 8R-AWN 1409 | -10/Exiles | Met EX-HEX 1457 | -10/Exiles | Met EX-BIN 1580 | -10/Exiles | Met EX-DEC 1779 | -10/Exiles | Entered Mines 1779 | -9/Mines | Accompanied by 2 allies 2008 | -9/Mines | Learned location of Storage (-9) 2021 | -9/Mines | Assembled infested the area 2026 | -9/Mines | Assisted by a Guerilla fighting off Assembled 2153 | -9/Mines | Discovered new exit (range 5) 2159 | -9/Mines | Entered Materials 2159 | -8/Materials | Evolved 4 slots: Power x1, Utility x3 2453 | -8/Materials | Build established: Hauler-Mutant 3188 | -8/Materials | Lost 6 parts (2p2u2w) 3492 | -8/Materials | Discovered new exit (range 4) 3504 | -8/Materials | Entered Factory 3504 | -7/Factory | Evolved 2 slots: Propulsion x2 3716 | -7/Factory | Identified exit to Lower Caves 3807 | -7/Factory | Build established: Sprinter 3842 | -7/Factory | Entered Lower Caves 3899 | -7/Lower Caves | Attracted the attention of an 0b10 checkpoint 3987 | -7/Lower Caves | Attacked by a delusional Derelict stockpiling parts 4161 | -7/Lower Caves | Learned Factory garrison access intel 4223 | -7/Lower Caves | Discovered new exit (range 12) 4231 | -7/Lower Caves | Learned location of Zion (-6) 4236 | -7/Lower Caves | Entered another Lower Caves area 4254 | -7/Lower Caves | Encountered a Warlord checkpoint 4304 | -7/Lower Caves | Discovered new exit (range 9) 4323 | -7/Lower Caves | Entered Data Miner 4323 | -7/Data Miner | Discovered new exit (range 6) 4327 | -7/Data Miner | Met Data Miner 4334 | -7/Data Miner | Learned location of Section 7 (-2) 4334 | -7/Data Miner | Acquired the access code to Warlord's prototype stash 4338 | -7/Data Miner | Received God Mode back door access code from Data Miner 4344 | -7/Data Miner | Entered Proximity Caves 4352 | -6/Proximity Caves | Escorted by Enhanced Grunt 4404 | -6/Proximity Caves | Identified exit to Factory 4459 | -6/Proximity Caves | Entered Factory 4459 | -6/Factory | Evolved 2 slots: Propulsion x1, Utility x1 4460 | -6/Factory | Loaded intel: 4 garrison access locations 4545 | -6/Factory | Discovered new exit (range 15) 4557 | -6/Factory | Discovered new exit (range 9) 4576 | -6/Factory | Entered another Factory area 4576 | -5/Factory | Evolved 2 slots: Propulsion x1, Utility x1 4648 | -5/Factory | Discovered new exit (range 11) 4710 | -5/Factory | Incoming investigation squad redirected 4798 | -5/Factory | Discovered new exit (range 14) 4912 | -5/Factory | Lost 3 parts (1p1u1w) 4919 | -5/Factory | Destroyed 8 combat bots 4944 | -5/Factory | Incoming investigation squad redirected 5012 | -5/Factory | Identified exit to Upper Caves 5012 | -5/Factory | Identified exit to Extension 5023 | -5/Factory | Sucked down chute 5023 | -5/Factory | Entered Waste 5036 | -5/Waste | Found Prototype Processor 5038 | -5/Waste | EMP discharged 5038 | -5/Waste | System corruption reached 10% 5039 | -5/Waste | Spotted C-40 Crusher 5041 | -5/Waste | Spotted C-40 Crusher 5043 | -5/Waste | Spotted C-40 Crusher 5046 | -5/Waste | Spotted C-40 Crusher 5047 | -5/Waste | Spotted C-40 Crusher 5048 | -5/Waste | Spotted C-40 Crusher 5051 | -5/Waste | Discovered new exit (range 12) 5053 | -5/Waste | Entered Factory 5100 | -5/Factory | Discovered new exit (range 11) 5365 | -5/Factory | Fabricated Mni. Smartbomb Launcher (x1) 5401 | -5/Factory | Identified exit to Factory 5427 | -5/Factory | Incoming investigation squad redirected 5623 | -5/Factory | Incoming investigation squad redirected 5670 | -5/Factory | Build established: Scout 5692 | -5/Factory | Discovered exit to Extension (range 5) 5730 | -5/Factory | Discovered exit to Upper Caves (range 21) 5735 | -5/Factory | Entered Upper Caves 6056 | -5/Upper Caves | Learned location of Warlord (-5) 6081 | -5/Upper Caves | Discovered new exit (range 9) 6116 | -5/Upper Caves | Identified exit to Upper Caves 6116 | -5/Upper Caves | Entered another Upper Caves area 6123 | -5/Upper Caves | Discovered exit to Factory (range 16) 6145 | -5/Upper Caves | Spotted B-75 Beast 6163 | -5/Upper Caves | Destroyed 7 combat bots 6171 | -5/Upper Caves | Attracted the attention of an 0b10 checkpoint 6175 | -5/Upper Caves | Destroyed B-75 Beast 6240 | -5/Upper Caves | Learned Factory stockpile data 6258 | -5/Upper Caves | Learned location of Armory (-4) 6429 | -5/Upper Caves | Discovered new exit (range 8) 6457 | -5/Upper Caves | Identified exit to Warlord 6458 | -5/Upper Caves | Entered Warlord 6469 | -5/Warlord | System corruption cleaned by Quarantine Array 6651 | -5/Warlord | Visited the Vortex Lab 6654 | -5/Warlord | Warlord's base attacked by MAIN.C 6667 | -5/Warlord | Learned 4 Access zone layouts 6667 | -5/Warlord | Learned 4 Command zone layouts 6668 | -5/Warlord | Learned Factory scanalyzer intel 6668 | -5/Warlord | Learned Armory scanalyzer intel 6697 | -5/Warlord | Met Warlord 6702 | -5/Warlord | Opened Warlord's prototype stash 6704 | -5/Warlord | Found Prototype Reactor 6704 | -5/Warlord | Identified Vortex Chain Reactor 6713 | -5/Warlord | Found Prototype Device 6713 | -5/Warlord | Identified Exp. Phase Shifter 6718 | -5/Warlord | Found Prototype Device 6718 | -5/Warlord | Identified Exp. Focal Shield 6733 | -5/Warlord | Found Prototype Processor 6733 | -5/Warlord | Identified Exp. Armor Integrity Analyzer 6846 | -5/Warlord | Discovered new exit (range 15) 6855 | -5/Warlord | Identified exit to Proximity Caves 6889 | -5/Warlord | Entered Proximity Caves 6955 | -4/Proximity Caves | Learned Research interactive machine intel 7016 | -4/Proximity Caves | Learned location of Testing (-3) 7098 | -4/Proximity Caves | Crushed by falling debris 7104 | -4/Proximity Caves | Destroyed 8 combat bots 7107 | -4/Proximity Caves | Spotted B-86 Titan 7139 | -4/Proximity Caves | Discovered exit to Factory (range 11) 7141 | -4/Proximity Caves | Lost 4 parts (2n2u) 7141 | -4/Proximity Caves | Entered Factory 7141 | -4/Factory | Evolved 2 slots: Propulsion x1, Utility x1 7142 | -4/Factory | Identified exit to Armory 7144 | -4/Factory | Loaded intel: 4 scanalyzer locations 7233 | -4/Factory | Self-destructed Last Messages --------------- 07123_ System corrupted: Matter fused (-6). 07139_ EXIT=FOUND: FACTORY PARAMETERS=PROPULSION_1,UTILITY_1 LOCATION=FACTORY GOAL=ESCAPE Loading 1 Armory entrance... Loading Factory stockpile data (x12)... Loading Factory scanalyzer intel (x4)... 07207_ Sneak attack on A-15 Conveyor. 07215_ A-15 Conveyor destroyed. 07218_ Acquired 110 matter. 07221_ R-10 Processor collects Imp. Weapon Shielding. 07229_ Penetrated by Slug. 07229_ Slug penetrates R-10 Processor. 07229_ Slug penetrates H-77 Assassin. 07232_ Penetrated by Slug. 07232_ Slug penetrates Wall. 07232_ Penetrated by Slug. 07232_ Slug penetrates Wall. 07232_ R-10 Processor collects Unknown Processor. Map ----- +----------------------------------------------------+ | ###### #?????????????????????????????????????? | | # #?????????????????????????????????????? | | # #?????????????????????????????????????? | | # #?????????????????????????????????????? | | !! # #?????????????????????????????????????? | | !! # #?????????????????????????????????????? | | ! # ##########????????????????????????????? | | # # #????????????????????????????? | | # # #????????????????????????????? | | # # #????????????????????????????? | | """ # # #????????????????????????????? | | """ # # #????????????????????????????? | | """ + # #????????????????????????????? | | # # #????????????????????????????? | | # # #????????????????????????????? | | #+#### ####+#####?????????????????????????]??? | | #??????????????????????????????? | | #??????????????????????????????? | | #??????????#####???????????????? | | #????????? ???????????????? | | #????????? ????????????????? | | #???????? ?????????????????? | | ########? """"?????????????????? | | ######### !* # """" ????????????????? | | #####???????#!!R # """" ????????????????? | | ????????????# ! @h """" ????????????????? | | ????????????# # """" ????????????????? | | ????????##### # """" ????????????????? | | ???# ###### #?h""""?????????????????? | | ???# #????# #? ?????????????????? | | ???# #????# #?? ????????????????? | | ???# """ """ #????# #??######???????????????? | | ???# """ """ #????#+#???????????????????????? | | ???# """ """ #??????????????????????????????? | | ??? #??????????????????????????????? | | ??? ????""" """ #??????????????????????????????? | | ?????????"""??"" #??????????????????????????????? | | ???????????????" #??????????????????????????????? | | ??????????????? +??????????????????????????????? | | ??????????????? #??????????????????????????????? | | ???????????????? #??????????????????????????????? | | ???????????????? #??????????????????????????????? | | ????????????????##???????????????????????????????? | | ?????????????????????????????????????????????????? | | ?????????????????????????????????????????????????? | | ?????????????????????????????????????????????????? | | ?????????????????????????????????????????????????? | | ?????????????????????????????????????????????????? | | ?????????????????????????????????????????????????? | | ?????????????????????????????????????????????????? | +----------------------------------------------------+ Best States ------------- Heat Dissipation 81 Energy Generation 55 Energy Capacity 700 Matter Stores 300 Matter Capacity 300 Sight Range 22 Robot Scan Range 20 Terrain Scan Density 10 Base Temperature (-) 100 Armor Coverage 300 Propulsion Shielding 66 Utility Shielding 66 Phase Shifting 20 Evasion (%) 66 Targeting Accuracy 8 Melee Accuracy 14 Armor Integrity Analysis 90 Recoil Reduction 2 Offensive Hacking 10 Item Schematics ----------------- Combat Drone Bay | -7/Data Miner | Free Lgt. Regenerative Plating | -7/Data Miner | Free Exp. Flexi-carbon Leg | -7/Data Miner | Free Triangulator | -7/Data Miner | Free Exp. Terrain Scanner | -7/Data Miner | Free Exp. Terrain Scan Processor | -7/Data Miner | Free Mni. Smartbomb Launcher | -7/Data Miner | Free Kinetic Spear | -7/Data Miner | Free Robot Schematics ------------------ S-27 Virus | -7/Data Miner | Free L-41 Fighter | -7/Data Miner | Free P-70 Sage | -7/Data Miner | Free G-50 Soldier | -7/Data Miner | Free I-36 Angel | -7/Data Miner | Free Fabricated ------------ Mni. Smartbomb Launcher | x1 | -5/Factory Alien Tech Used ----------------- None Achievements -------------- None Challenges ------------ None Game ------ Seed GammaDisruptionFacilitator Manual? 0 Play Time 02:10:56 Cumulative 1067.6 hours Start 2020.09.16 @ 09:29:38 End 2020.09.17 @ 09:34:53 Sessions 5 Manual Loads 0 Difficulty Rogue Special Mode None Game No. 655 Rogue 655 Adventurer 0 Explorer 0 Win Type - Total 18 Types 10/1/4/3/0/0/0/0/0 Lore% 90 Gallery% 93 Achievement% 81 Wizard Run 0 Options --------- ASCII 0 Keyboard 0 Movement Mouse Keybinds 0 Fullscreen 1 Font 24/Smallcaps Map View 76x50 Tactical HUD 1 Map Filters NONE Filters NONE Steam 1 RUN: 2c679213-6b14-45bc-82b3-c9aaed0ffce8